[Event "44th Chess Olympiad Open 2022"]
[Site "Chennai"]
[Date "2022.08.09"]
[Round "11.79"]
[White "Hlophe, Smilo"]
[Black "Chinasamy, Devarajen"]
[Result "0-1"]
[ECO "D02"]
[WhiteElo "1731"]
[BlackElo "1970"]
[Annotator "TA"]
[PlyCount "102"]
[EventDate "2022.07.29"]
[EventType "team-tourn"]
[EventCountry "IND"]
[SourceTitle "playchess.com"]
[Source "ChessBase"]
[SourceQuality "1"]
[WhiteTeam "SWZ"]
[BlackTeam "Mauritius"]
[BlackTeamCountry "MRI"]
[TimeControl "40/5400+30:1800+30"]

{[%evp 9,102,1,54,37,43,14,53,55,75,43,43,14,4,-10,30,23,29,35,41,46,50,49,43,39,39,18,17,13,20,11,30,22,47,23,18,8,8,-76,-48,-39,-19,-52,-27,-31,-2,-33,-16,-25,-35,-39,-18,-60,-73,-357,-356,-347,-343,-354,-239,-289,-326,-337,-183,-191,-177,-189,-182,-195,-219,-249,-250,-386,-319,-316,-295,-325,-324,-483,-500,-490,-419,-570,-437,-598,-593,-812,-771,-775,-763,-895,-884,-856,-823,-29980,-29981]} 1. d4 {[%emt 0:03:44]} d5 {[%emt 0:00:08]} 2. Nf3 {[%emt 0:00:03]} Nf6 {[%emt 0:00:09]} 3. g3 {[%emt 0:00:01]} c6 {[%emt 0:00:11]} 4. Bg2 {[%emt 0:00:06]} Bf5 {[%emt 0:00:24]} 5. c4 {[%emt 0:00:05]} a6 {[%emt 0:01:04]} (5... e6 $11) 6. Nc3 {[%emt 0:00:10] D02: 1 d4 d5 2 Nf3 sidelines, including 2...Nf6 3 g3 and 2...Nf6 3 Bf4.} e6 {[%emt 0:00:13]} 7. Qb3 {[%emt 0:00:10]} Ra7 {[%emt 0:00:19]} (7... b5 $5) 8. O-O {[%emt 0:00:54] White is slightly better.} Nbd7 {[%emt 0:00:28]} 9. Bf4 {[%emt 0:00:41] [#]} (9. Nh4 $5 {[%cal Rc4d5]}) 9... Be7 $146 {[%emt 0:00:19]} ({Predecessor:} 9... h6 10. h3 Be7 11. Rfc1 O-O 12. a4 Qb6 13. Qxb6 Nxb6 14. c5 Nbd7 15. g4 Bh7 {½-½ (39) Vastrukhin,O (2413)-Dilmukhametov,A (2353) Sochi 2018}) 10. h3 {[%emt 0:00:26]} O-O {[%emt 0:00:49]} 11. Nd2 {[%emt 0:06:21]} Bg6 {[%emt 0:04:24]} 12. e4 {[%emt 0:01:40][%cal Re4d5]} dxe4 {[%emt 0:00:47]} (12... dxc4 {is more complex.} 13. Nxc4 b5 14. Ne5 Nxe5 15. dxe5 Nd7) 13. Ndxe4 {[%emt 0:00:18]} (13. Ncxe4 {feels hotter.} Qb6 14. Qxb6 Nxb6 15. b3) 13... Nxe4 {[%emt 0:00:14]} 14. Nxe4 {[%emt 0:00:11]} Bxe4 {[%emt 0:09:32]} 15. Bxe4 {[%emt 0:00:26]} Bg5 {[%emt 0:00:24]} 16. Bxg5 {[%emt 0:02:42]} Qxg5 {[%emt 0:00:07]} 17. Qe3 {[%emt 0:00:20]} Qxe3 {[%emt 0:05:44]} 18. fxe3 {[%emt 0:00:08]} Raa8 {[%emt 0:02:41]} 19. b4 {[%emt 0:14:15][%cal Bb2b4,Bb4b5][%mdl 32]} Rab8 {[%emt 0:02:29]} 20. a4 {[%emt 0:00:08]} f5 {[%emt 0:05:41]} 21. Bd3 {[%emt 0:01:31]} g6 {[%emt 0:03:45]} 22. b5 {[%emt 0:02:04]} c5 {[%emt 0:00:47]} 23. d5 {[%emt 0:02:09]} (23. a5 $11) 23... exd5 {[%emt 0:02:17] aiming for ...Rfe8.} 24. cxd5 {[%emt 0:00:02]} Ne5 {[%emt 0:00:36]} 25. Be2 {[%emt 0:02:23]} a5 {[%emt 0:01:05]} 26. b6 {[%emt 0:00:46]} Rbd8 {[%emt 0:03:46]} 27. Rfd1 {[%emt 0:00:24]} Rd6 {[%emt 0:01:56]} 28. Rab1 {[%emt 0:00:08]} Nd7 {[%emt 0:04:21]} 29. Rb5 {[%emt 0:01:06]} Ra8 {[%emt 0:00:41]} 30. Rc1 {[%emt 0:03:47]} Kg7 {[%emt 0:00:37]} 31. Rcxc5 $2 {[%emt 0:27:21][%mdl 8192] [#] Now White is beyond hope.} (31. Rb3 $17) 31... Nxc5 $19 {[%emt 0:00:52]} 32. Rxc5 {[%emt 0:00:02]} Rxb6 $17 {[%emt 0:01:43][%mdl 4096] Endgame KRR-KRB} 33. Rc7+ {[%emt 0:00:10]} Kh8 {[%emt 0:00:29]} 34. g4 {[%emt 0:04:32]} Rd8 {[%emt 0:02:49]} 35. Rc5 {[%emt 0:01:43]} Rbd6 {[%emt 0:01:06]} (35... Rb1+ $142 36. Kf2 b6) 36. Bf3 $19 {[%emt 0:01:39]} b6 {[%emt 0:00:15]} 37. Rc7 {[%emt 0:00:55]} R8d7 {[%emt 0:00:37]} 38. Rc8+ {[%emt 0:06:54]} Kg7 {[%emt 0:00:10]} 39. Kg2 {[%emt 0:00:05]} Re7 {[%emt 0:01:33]} 40. gxf5 {[%emt 0:01:51]} (40. Kf2 $142) 40... gxf5 {[%emt 0:02:26]} 41. Kf2 {[%emt 0:30:09]} Kf6 {[%emt 0:32:04]} 42. Ke2 {[%emt 0:00:27]} Ke5 {[%emt 0:00:51]} 43. Kd3 {[%emt 0:00:13]} (43. h4 {was called for.}) 43... Rh6 {[%emt 0:01:16]} 44. Bg2 {[%emt 0:05:26]} Rg6 {[%emt 0:04:25]} 45. Rc2 {[%emt 0:02:33]} Reg7 {[%emt 0:00:37]} 46. Bf3 {[%emt 0:00:24]} Rg3 {[%emt 0:00:28][%csl LRf3,LRh3]} 47. Ke2 {[%emt 0:00:16]} Rxh3 {[%emt 0:00:56] [#] Hoping for ...Rgg3.} 48. Rc6 {[%emt 0:00:06]} Rg6 {[%emt 0:00:15]} 49. Rc8 {[%emt 0:02:25]} Rgg3 {[%emt 0:01:44]} 50. d6 {[%emt 0:03:06]} Kxd6 {[%emt 0:01:54]} 51. Rc6+ {[%emt 0:00:27]} Ke5 {[%emt 0:00:42] Weighted Error Value: White=0.63/Black=0.19 (very precise)} 0-1

[Event "44th Chess Olympiad Open 2022"]
[Site "Chennai"]
[Date "2022.08.09"]
[Round "11.79"]
[White "Dlamini Simphiwe"]
[Black "Goorsahye, Antoine"]
[Result "1/2-1/2"]
[ECO "C84"]
[WhiteElo "1569"]
[BlackElo "1783"]
[Annotator "NA RC COMBH"]
[PlyCount "60"]
[EventDate "2022.07.29"]
[EventType "team-tourn"]
[EventCountry "IND"]
[SourceTitle "playchess.com"]
[Source "ChessBase"]
[SourceQuality "1"]
[WhiteTeam "SWZ"]
[BlackTeam "Mauritius"]
[BlackTeamCountry "MRI"]
[TimeControl "40/5400+30:1800+30"]

1. e4 {[%emt 0:01:37]} e5 {[%emt 0:00:08]} 2. Nf3 {[%emt 0:00:06]} Nc6 {[%emt 0:00:06]} 3. Bb5 {[%emt 0:00:56]} a6 {[%emt 0:00:10]} 4. Ba4 {[%emt 0:00:06]} Nf6 {[%emt 0:00:10]} 5. O-O {[%emt 0:00:11]} Be7 {[%emt 0:00:08]} 6. d4 {[%emt 0:00:36]} b5 {[%emt 0:00:44]} 7. Bb3 {[%emt 0:00:48]} Nxd4 {[%emt 0:00:27]} 8. Bxf7+ {[%emt 0:02:09]} Kxf7 {[%emt 0:03:24]} 9. Nxe5+ {[%emt 0:00:10]} Ke8 {[%emt 0:00:27]} 10. Qxd4 {[%emt 0:00:12]} Bb7 {[%emt 0:00:38]} 11. Nc3 {[%emt 0:00:38]} d6 {[%emt 0:00:52]} 12. Nf3 {[%emt 0:03:12]} Rf8 {[%emt 0:02:54]} 13. Nd5 {[%emt 0:10:42]} Nxd5 {[%emt 0:01:30]} 14. exd5 {[%emt 0:00:08]} Kf7 {[%emt 0:01:57]} 15. Qe4 {[%emt 0:16:52]} Kg8 {[%emt 0:01:56]} 16. Nd4 {[%emt 0:01:55]} Bf6 {[%emt 0:08:18]} 17. Ne6 {[%emt 0:07:09]} Qe7 {[%emt 0:00:34]} 18. g4 {[%emt 0:03:55]} Rfe8 {[%emt 0:06:22]} 19. g5 {[%emt 0:02:50]} Be5 {[%emt 0:03:35]} 20. f4 {[%emt 0:01:06]} Qxe6 {[%emt 0:01:35]} 21. dxe6 {[%emt 0:00:28]} Bxe4 {[%emt 0:00:22]} 22. fxe5 {[%emt 0:00:36]} Rxe6 {[%emt 0:04:48]} 23. exd6 {[%emt 0:01:36]} cxd6 {[%emt 0:00:22]} 24. c3 {[%emt 0:01:21]} Bb7 {[%emt 0:02:39]} 25. Bf4 {[%emt 0:01:27]} Rae8 {[%emt 0:00:30]} 26. Rf2 {[%emt 0:04:26]} Re4 {[%emt 0:03:11]} 27. Rd1 {[%emt 0:06:42]} d5 {[%emt 0:02:37]} 28. Kg2 {[%emt 0:09:54]} d4 {[%emt 0:01:09]} 29. Kg3 {[%emt 0:00:09]} dxc3 {[%emt 0:01:17]} 30. bxc3 {[%emt 0:00:16]} Rc4 {[%emt 0:05:13]} 1/2-1/2

[Event "44th Chess Olympiad Open 2022"]
[Site "Chennai"]
[Date "2022.08.09"]
[Round "11.80"]
[White "Tchouka, Yakini"]
[Black "Powell, Malcolm"]
[Result "1-0"]
[ECO "B13"]
[WhiteElo "1934"]
[BlackElo "1218"]
[Annotator "TA"]
[PlyCount "65"]
[EventDate "2022.07.29"]
[EventType "team-tourn"]
[EventCountry "IND"]
[SourceTitle "playchess.com"]
[Source "ChessBase"]
[SourceQuality "1"]
[WhiteTeam "Togo"]
[BlackTeam "Cayman Islands"]
[WhiteTeamCountry "TOG"]
[BlackTeamCountry "CAY"]
[TimeControl "40/5400+30:1800+30"]

{[%evp 14,65,34,31,51,42,49,45,37,43,41,40,65,51,50,43,70,70,71,67,73,74,85,60,60,65,54,60,507,507,504,500,1798,1893,1285,1070,1298,1146,1118,1111,1148,1138,1034,933,1846,1674,29991,29985,29991,29991,29991,29992,29996,29997]} 1. e4 {[%emt 0:00:04]} c6 {[%emt 0:00:05]} 2. d4 {[%emt 0:00:06]} d5 {[%emt 0:00:48]} 3. exd5 {[%emt 0:00:27]} cxd5 {[%emt 0:00:11]} 4. Bd3 {[%emt 0:00:07]} Nc6 {[%emt 0:00:12]} 5. c3 {[%emt 0:00:08]} Nf6 {[%emt 0:00:48]} 6. Bf4 {[%emt 0:00:21]} g6 {[%emt 0:00:36]} 7. Nd2 {[%emt 0:01:40]} Bg7 {[%emt 0:01:12] 7...Bf5 might become the main line.} 8. Ngf3 {[%emt 0:00:16]} Bg4 {[%emt 0:00:09] B13: Caro-Kann: Exchange Variation and Panov-Botvinnik Attack.} 9. h3 {[%emt 0:00:23]} Bxf3 {[%emt 0:00:08]} 10. Nxf3 {[%emt 0:00:05]} O-O {[%emt 0:01:21] White is slightly better.} 11. Qd2 {[%emt 0:02:05]} a6 {[%emt 0:02:14]} 12. O-O {[%emt 0:01:02]} b5 {[%emt 0:01:32]} 13. Rfe1 {[%emt 0:01:35] White is more active.} e6 {[%emt 0:04:13] [#]} 14. Qe2 $146 {[%emt 0:04:41]} ({Predecessor:} 14. Bh6 Qb6 15. Ne5 Nxe5 16. dxe5 Nd7 17. Bxg7 Kxg7 18. h4 h5 19. Qg5 Qd8 20. Qg3 {0-1 (46) Hund,S (1629)-Prill,D (2038) Playchess.com INT 2020}) 14... Qd7 {[%emt 0:05:38]} 15. a4 {[%emt 0:00:52]} b4 {[%emt 0:11:05]} 16. Bxa6 {[%emt 0:09:18]} bxc3 {[%emt 0:02:13]} 17. bxc3 {[%emt 0:00:02]} Ne4 {[%emt 0:07:11]} 18. Bb5 {[%emt 0:02:37] A strong pair of Bishops.} Nxc3 {[%emt 0:01:14]} 19. Qb2 {[%emt 0:04:11]} Nxb5 {[%emt 0:01:57]} 20. axb5 {[%emt 0:00:07]} ({Reject} 20. Qxb5 $6 Rfd8 21. Red1 Na5 $15) 20... Nxd4 {[%emt 0:15:44][%mdl 8192] This costs Black the game.} 21. Nxd4 $18 {[%emt 0:05:07]} Rxa1 {[%emt 0:14:29]} 22. Qxa1 {[%emt 0:00:17]} ({Less strong is} 22. Rxa1 e5 $16) 22... Bxd4 {[%emt 0:00:07]} (22... h6 $142 23. b6 e5 24. Bxe5 Bxe5 25. Rxe5 Qd6) 23. Qxd4 {[%emt 0:00:14] [#] White threatens Bh6 and mate.} f6 {[%emt 0:00:03]} 24. Qb4 {[%emt 0:02:36]} e5 {[%emt 0:01:00]} 25. Bd2 {[%emt 0:01:00]} Rb8 {[%emt 0:03:47]} 26. b6 {[%emt 0:00:06] Strongly threatening Rc1.} Rb7 {[%emt 0:05:35]} 27. Bh6 {[%emt 0:02:52][%csl Gh6][%cal Rb4f8] [#]} Qd8 {[%emt 0:01:44] Inhibits Qf8+.} 28. Rb1 {[%emt 0:02:30]} g5 {[%emt 0:03:20]} 29. h4 {[%emt 0:00:16]} d4 {[%emt 0:03:13]} 30. hxg5 {[%emt 0:00:33] White mates.} fxg5 {[%emt 0:00:09]} 31. Qb3+ {[%emt 0:00:55]} Kh8 {[%emt 0:00:31]} 32. Qe6 {[%emt 0:00:19]} Qb8 {[%emt 0:07:19]} 33. Rc1 {[%emt 0:01:10] Weighted Error Value: White=0.05 (flawless) /Black=0.58} 1-0

[Event "44th Chess Olympiad Open 2022"]
[Site "Chennai"]
[Date "2022.08.09"]
[Round "11.80"]
[White "Egbe, Kossi Thierry"]
[Black "Young, Christopher"]
[Result "1/2-1/2"]
[ECO "B48"]
[WhiteElo "1703"]
[BlackElo "1990"]
[Annotator "TA"]
[PlyCount "104"]
[EventDate "2022.07.29"]
[EventType "team-tourn"]
[EventCountry "IND"]
[SourceTitle "playchess.com"]
[Source "ChessBase"]
[SourceQuality "1"]
[WhiteTeam "Togo"]
[BlackTeam "Ireland"]
[WhiteTeamCountry "TOG"]
[BlackTeamCountry "IRL"]
[TimeControl "40/5400+30:1800+30"]

{[%evp 17,104,0,10,-10,4,17,43,34,41,48,49,0,0,-8,0,-20,-16,-27,0,0,0,-31,-18,-18,-18,-18,-18,-47,-46,-54,-51,-54,-50,-80,-80,-80,-80,-103,-88,-80,-18,-18,-18,-80,-18,-103,-103,-103,-80,-80,0,-75,-23,-23,-23,-23,-8,-22,0,0,0,0,0,0,0,0,0,-516,0,0,0,0,0,0,0,0,0,0,0,0,0,0,0,0,0,0,29993,29964,29991]} 1. e4 {[%emt 0:00:05]} c5 {[%emt 0:00:04]} 2. Nf3 {[%emt 0:00:07]} e6 {[%emt 0:00:06]} 3. d4 {[%emt 0:00:20]} cxd4 {[%emt 0:00:05]} 4. Nxd4 {[%emt 0:00:08]} a6 {[%emt 0:00:17]} 5. Bd3 {[%emt 0:00:30]} Qc7 {[%emt 0:00:23]} 6. O-O {[%emt 0:00:23]} Nf6 {[%emt 0:01:16]} 7. Nc3 {[%emt 0:00:21]} b5 {[%emt 0:02:54]} 8. Be3 {[%emt 0:03:28]} Bb7 {[%emt 0:03:04]} 9. a3 {[%emt 0:01:09]} Nc6 {[%emt 0:03:32]} 10. Nxc6 {[%emt 0:04:11] B48: Sicilian: Taimanov: 5 Nc3 Qc7 6 Be3 a6 without Be2.} Bxc6 {[%emt 0:04:06]} 11. f4 {[%emt 0:02:38]} d5 {[%emt 0:22:57][%cal Rd5e4] [#]} 12. e5 $146 {[%emt 0:07:01] White is slightly better.} ({Predecessor:} 12. exd5 Nxd5 13. Nxd5 Bxd5 14. b4 Be7 15. Bd4 Bf6 16. Bxf6 gxf6 17. Qg4 Ke7 18. Qe2 {0-1 (31) Fels,K (1676)-Willin,B (1909) Bergen 2013}) 12... Ne4 {[%emt 0:00:41]} 13. Ne2 {[%emt 0:01:35]} Be7 {[%emt 0:19:00]} 14. Bxe4 {[%emt 0:05:27]} (14. Nd4 $14 {should be considered.}) 14... dxe4 $11 {[%emt 0:00:07]} 15. Nd4 {[%emt 0:01:15]} g6 {[%emt 0:13:44] Against f5} 16. Qe2 {[%emt 0:02:38]} Bd5 {[%emt 0:00:41]} 17. Rfd1 {[%emt 0:02:10]} h5 {[%emt 0:07:34]} 18. a4 {[%emt 0:04:26]} b4 {[%emt 0:03:07]} 19. Rdc1 {[%emt 0:02:03]} Bc4 {[%emt 0:03:57]} 20. Qf2 {[%emt 0:01:05]} O-O {[%emt 0:03:21]} 21. c3 {[%emt 0:00:32]} b3 {[%emt 0:00:08]} 22. h3 {[%emt 0:02:50]} f6 {[%emt 0:01:36]} 23. Qg3 {[%emt 0:01:26]} Kh7 {[%emt 0:00:19]} 24. Re1 {[%emt 0:08:36][%cal Of4f5]} Rad8 {[%emt 0:02:48]} 25. h4 {[%emt 0:08:53]} Rf7 {[%emt 0:02:20]} 26. Qh3 {[%emt 0:04:16]} f5 {[%emt 0:03:11]} ({But not} 26... fxe5 $6 27. fxe5 Rd7 28. Qg3 $15) 27. g3 {[%emt 0:00:31]} Bc5 {[%emt 0:00:57]} 28. Qg2 {[%emt 0:00:44]} Bd5 {[%emt 0:00:44]} (28... Bb6 $17) 29. Qf2 $1 {[%emt 0:01:01][%cal Od4f5]} Rc8 {[%emt 0:00:26]} 30. Red1 {[%emt 0:04:06] [#]} (30. Ne2 $11 {remains equal.}) 30... Rd7 {[%emt 0:01:06]} (30... Bc4 $1 $17) 31. Rac1 {[%emt 0:00:53]} (31. Ne2 $1 $11 {keeps the balance.}) 31... Bc4 $17 {[%emt 0:00:23]} 32. Ra1 {[%emt 0:03:28]} Qa5 {[%emt 0:00:37]} 33. Kh2 {[%emt 0:00:19][%cal Od4b3]} Qc7 {[%emt 0:00:45]} (33... Qb6 $17) 34. Rd2 {[%emt 0:02:56]} (34. Kg1 $1 $11) 34... Bxd4 {[%emt 0:00:09]} ({Better is} 34... Rcd8 $17) 35. Rxd4 $11 {[%emt 0:00:41]} Rxd4 {[%emt 0:00:39]} 36. Bxd4 {[%emt 0:00:07]} Bd3 {[%emt 0:00:36]} 37. Bb6 {[%emt 0:03:09]} Qc6 {[%emt 0:00:03]} 38. Qd4 {[%emt 0:00:51]} Kg7 {[%emt 0:00:41]} 39. Kg1 {[%emt 0:00:57][%cal Bh2g1,Bg1f2,Bf2e3,Be3d2,Bd2c1][%mdl 32]} Kf7 {[%emt 0:00:27]} 40. Kf2 {[%emt 0:00:13]} Ke7 {[%emt 0:01:04]} 41. Qb4+ {[%emt 0:31:04]} Kf7 {[%emt 0:01:05]} 42. Qxb3 $2 {[%emt 0:00:00][%mdl 8192] [#]} (42. Be3 $11 {and White is okay.}) 42... Rb8 $2 {[%emt 0:02:28]} (42... Qb7 $1 $19 {[%cal Oe4e3] And now ...e3+! would win.} 43. Qb4 Rc4) 43. a5 {[%emt 0:00:00]} e3+ {[%emt 0:00:28][%mdl 64] Decoy} 44. Kxe3 {[%emt 0:00:00] Chess con chili.} Qe4+ {[%emt 0:00:11]} 45. Kd2 $1 {[%emt 0:00:00]} Qe2+ {[%emt 0:04:51]} 46. Kc1 {[%emt 0:00:00] Black must now prevent Qd1.} Qe1+ {[%emt 0:10:14]} 47. Qd1 {[%emt 0:00:00]} Qxg3 {[%emt 0:01:10]} 48. Ra4 {[%emt 0:00:00]} Rxb6 {[%emt 0:06:07][%mdl 64] Remove Defender} 49. axb6 {[%emt 0:00:00] Hoping for b3.} Qe3+ {[%emt 0:00:04]} 50. Qd2 {[%emt 0:00:00]} Qg1+ {[%emt 0:00:10]} 51. Qd1 {[%emt 0:02:09]} Bb5 $2 {[%emt 0:00:24][%mdl 8192]} 52. Rd4 {[%emt 0:00:10]} Qg3 {[%emt 0:00:02][%mdl 32768] What a bad dream for Black.  Weighted Error Value: White=0.35/Black=0.37. An unexpected result.} 1/2-1/2

[Event "44th Chess Olympiad Open 2022"]
[Site "Chennai"]
[Date "2022.08.09"]
[Round "11.80"]
[White "Tracey, Shaun M"]
[Black "Strovsky, Mikhail"]
[Result "1/2-1/2"]
[ECO "B23"]
[WhiteElo "1650"]
[BlackElo "2158"]
[Annotator "RC"]
[PlyCount "77"]
[EventDate "2022.07.29"]
[EventType "team-tourn"]
[EventCountry "IND"]
[SourceTitle "playchess.com"]
[Source "ChessBase"]
[SourceQuality "1"]
[WhiteTeam "Cayman Islands"]
[BlackTeam "Togo"]
[WhiteTeamCountry "CAY"]
[BlackTeamCountry "TOG"]
[TimeControl "40/5400+30:1800+30"]

1. e4 {[%emt 0:00:02]} c5 {[%emt 0:00:09]} 2. Nc3 {[%emt 0:00:08]} a6 {[%emt 0:00:05]} 3. g3 {[%emt 0:01:03]} b5 {[%emt 0:00:18]} 4. Qe2 {[%emt 0:02:07]} Bb7 {[%emt 0:00:56]} 5. Bg2 {[%emt 0:02:00]} e6 {[%emt 0:00:56]} 6. Nf3 {[%emt 0:04:26]} Nc6 {[%emt 0:00:40]} 7. d3 {[%emt 0:01:06]} Nd4 {[%emt 0:03:43]} 8. Nxd4 {[%emt 0:01:30]} cxd4 {[%emt 0:00:12]} 9. Nd1 {[%emt 0:00:17]} Nf6 {[%emt 0:02:31]} 10. c3 {[%emt 0:03:19]} Qb6 {[%emt 0:04:38]} 11. O-O {[%emt 0:02:10]} dxc3 {[%emt 0:02:28]} 12. Nxc3 {[%emt 0:00:23]} Bc5 {[%emt 0:02:19]} 13. a3 {[%emt 0:02:41]} O-O {[%emt 0:02:03]} 14. Bg5 {[%emt 0:02:22]} Bd4 {[%emt 0:05:16]} 15. Rac1 {[%emt 0:02:25]} Rac8 {[%emt 0:00:51]} 16. Kh1 {[%emt 0:03:52]} h6 {[%emt 0:03:02]} 17. Bd2 {[%emt 0:01:44]} Rfd8 {[%emt 0:01:26]} 18. f4 {[%emt 0:02:38]} a5 {[%emt 0:09:03]} 19. f5 {[%emt 0:06:34]} e5 {[%emt 0:04:49]} 20. g4 {[%emt 0:01:14]} b4 {[%emt 0:05:16]} 21. axb4 {[%emt 0:07:36]} axb4 {[%emt 0:00:16]} 22. Na4 {[%emt 0:08:38]} Qb5 {[%emt 0:01:28]} 23. b3 {[%emt 0:00:24]} d5 {[%emt 0:02:21]} 24. g5 {[%emt 0:04:14]} Nxe4 {[%emt 0:04:18]} 25. gxh6 {[%emt 0:00:43]} Rxc1 {[%emt 0:02:56]} 26. Bxc1 {[%emt 0:02:38]} Nd6 {[%emt 0:12:44]} 27. Qg4 {[%emt 0:01:48]} Ne8 {[%emt 0:02:06]} 28. hxg7 {[%emt 0:03:11]} Rd6 {[%emt 0:03:31]} 29. Rf3 {[%emt 0:06:21]} e4 {[%emt 0:01:04]} 30. Rg3 {[%emt 0:08:31]} Qc6 {[%emt 0:01:18]} 31. Bf4 {[%emt 0:01:09]} Qc2 {[%emt 0:05:12]} 32. Bf1 {[%emt 0:01:40]} Rc6 {[%emt 0:05:23]} 33. Qh4 {[%emt 0:05:20]} Bxg7 {[%emt 0:01:05]} 34. Qe7 {[%emt 0:00:35]} Qf2 {[%emt 0:05:47]} 35. Qxe8+ {[%emt 0:00:08]} Kh7 {[%emt 0:00:13]} 36. Rh3+ {[%emt 0:00:05]} Rh6 {[%emt 0:00:26]} 37. Rxh6+ {[%emt 0:00:49]} Bxh6 {[%emt 0:00:16]} 38. Qxf7+ {[%emt 0:00:25]} Bg7 {[%emt 0:00:20]} 39. Qg6+ {[%emt 0:10:46]} 1/2-1/2

[Event "44th Chess Olympiad Open 2022"]
[Site "Chennai"]
[Date "2022.08.09"]
[Round "11.80"]
[White "Shaw, Clifford"]
[Black "Ballebako, Kokou Difendramakada"]
[Result "1-0"]
[ECO "B09"]
[WhiteElo "1615"]
[BlackElo "1524"]
[Annotator "NA RC COMBH"]
[PlyCount "47"]
[EventDate "2022.07.29"]
[EventType "team-tourn"]
[EventCountry "IND"]
[SourceTitle "playchess.com"]
[Source "ChessBase"]
[SourceQuality "1"]
[WhiteTeam "Cayman Islands"]
[BlackTeam "Togo"]
[WhiteTeamCountry "CAY"]
[BlackTeamCountry "TOG"]
[TimeControl "40/5400+30:1800+30"]

1. e4 {[%emt 0:00:02]} d6 {[%emt 0:00:10]} 2. d4 {[%emt 0:00:02]} Nf6 {[%emt 0:00:15]} 3. Nc3 {[%emt 0:00:02]} g6 {[%emt 0:00:15]} 4. f4 {[%emt 0:00:02]} Bg7 {[%emt 0:00:13]} 5. Nf3 {[%emt 0:00:02]} c5 {[%emt 0:00:23]} 6. Bb5+ {[%emt 0:00:04]} Bd7 {[%emt 0:03:37]} 7. e5 {[%emt 0:00:31]} Ng4 {[%emt 0:05:14]} 8. Ng5 {[%emt 0:11:58]} h6 {[%emt 0:12:50]} 9. e6 {[%emt 0:08:19]} hxg5 {[%emt 0:02:39]} 10. exd7+ {[%emt 0:00:24]} Nxd7 {[%emt 0:04:27]} 11. Qxg4 {[%emt 0:00:09]} e6 {[%emt 0:00:58]} 12. dxc5 {[%emt 0:04:09]} O-O {[%emt 0:00:56]} 13. Bxd7 {[%emt 0:02:24]} Qxd7 {[%emt 0:01:29]} 14. O-O {[%emt 0:01:17]} gxf4 {[%emt 0:09:23]} 15. cxd6 {[%emt 0:01:05]} Qxd6 {[%emt 0:00:47]} 16. Qxf4 {[%emt 0:00:52]} Be5 {[%emt 0:04:45]} 17. Qh4 {[%emt 0:00:48]} Rac8 {[%emt 0:10:01]} 18. Be3 {[%emt 0:02:38]} f5 {[%emt 0:07:44]} 19. Rad1 {[%emt 0:05:16]} Qc6 {[%emt 0:09:57]} 20. Rd3 {[%emt 0:01:23]} Rc7 {[%emt 0:01:29]} 21. Rd8 {[%emt 0:08:19]} Bxh2+ {[%emt 0:06:08]} 22. Kxh2 {[%emt 0:00:57]} Rxd8 {[%emt 0:15:04]} 23. Qxd8+ {[%emt 0:00:14]} Kf7 {[%emt 0:00:05]} 24. Rd1 {[%emt 0:00:53]} 1-0